bitfinex/quotes_SOLUSD_20241010
["timestamp","ask_amount","ask_price","bid_price","bid_amount"]
[1728531673833,0.12549,140.15,140.11,24.9796]
[1728531674210,0.12549,140.15,140.11,26.40689499]
[1728531675523,0.12549,140.15,140.11,24.9796]
[1728531675713,7.26079,140.15,140.11,24.9796]
[1728531678515,7.26119,140.14,140.11,17.8425]
[1728531680331,7.26119,140.14,140.1,7.1375]
[1728531683824,34.2628,140.19,140.1,30.71877946]
[1728531685132,0.25098,140.17,140.1,30.71877946]
[1728531685639,7.1353,140.15,140.11,7.1372]
[1728531686017,0.12549,140.14,140.11,7.1372]
[1728531689928,7.1353,140.15,140.11,8.56450296]
[1728531691022,0.12549,140.14,140.11,7.1372]
[1728531691837,0.12549,140.14,140.1,24.9812]
[1728531692043,7.26119,140.14,140.1,24.9812]
[1728531692246,0.12549,140.14,140.1,17.8437]
[1728531692550,7.26129,140.14,140.09,7.1381]
[1728531692730,0.12549,140.13,140.07,24.3757]
[1728531692933,7.1369,140.12,140.08,7.1386]
[1728531693137,7.1369,140.12,140.08,10.85493153]
[1728531693325,7.26169,140.13,140.08,7.1386]
[1728531694149,7.26169,140.13,140.08,10.85858731]
[1728531694838,7.26169,140.13,140.08,7.1386]
[1728531695043,0.12549,140.12,140.08,7.1386]
[1728531695345,0.12549,140.12,140.08,10.85858545]
[1728531695727,7.26229,140.12,140.07,30.72247946]
[1728531695926,7.26229,140.12,140.07,37.86157946]
[1728531696127,0.12549,140.11,140.07,24.9865]
[1728531696336,7.26269,140.11,140.07,24.9865]
[1728531696529,0.12549,140.1,140.05,15.6937]
[1728531696739,7.139,140.08,140.05,3.72541484]
[1728531696951,0.12549,140.1,140.04,17.8514]
[1728531697132,0.25098,140.08,140.04,24.9921]
[1728531701048,0.25098,140.09,140.05,7.1402]
[1728531701356,0.25098,140.09,140.05,8.56810138]
[1728531702460,0.25098,140.09,140.06,7.1397]
[1728531705555,0.25098,140.09,140.04,24.9918]
[1728531705556,7.1387,140.08,140.04,24.9918]
[1728531710038,0.12549,140.07,140.04,24.9918]
[1728531710268,0.25098,140.07,140.04,17.8514]
[1728531712157,0.12549,140.08,140.04,19.27942803]
[1728531712372,23.6676,140.11,140.06,7.1396]
[1728531713141,22.35925154,140.12,140.07,1.4277828]
[1728531714045,22.35925154,140.12,140.06,30.72367946]
[1728531714358,22.35925154,140.12,140.08,7.1387]
[1728531714674,0.25098,140.11,140.08,7.1387]
[1728531715162,0.25098,140.11,140.06,17.8486]
[1728531715369,0.25098,140.11,140.07,7.1391]
[1728531716166,0.25098,140.11,140.06,24.9882]
[1728531716167,7.1379,140.1,140.06,24.9882]
[1728531716379,0.25098,140.09,140.06,17.8486]
[1728531716744,7.38918,140.09,140.06,17.8486]
[1728531717249,7.38918,140.09,140.03,33.9271637]
[1728531717452,7.38918,140.09,140.04,10.87290831]
[1728531717668,7.38918,140.09,140.04,7.1407]
[1728531718253,0.25098,140.09,140.05,8.56820992]
[1728531718749,24.027864,140.09,140.05,8.56820992]
[1728531719467,24.027864,140.09,140.05,7.1402]
[1728531720478,0.25098,140.09,140.05,7.1402]
[1728531720649,0.12549,140.1,140.06,8.56720524]
[1728531720848,0.25098,140.1,140.06,7.1393]
[1728531722050,7.1379,140.1,140.06,7.1393]
[1728531722457,0.12549,140.09,140.06,7.1393]
[1728531728961,15.22245154,140.12,140.05,12.87507946]
[1728531729161,15.22245154,140.12,140.07,17.8477]
[1728531730479,0.25098,140.11,140.07,24.9869]
[1728531731588,7.38838,140.11,140.07,24.9869]
[1728531735996,24.027864,140.11,140.04,17.8512]
[1728531736287,39.966464,140.11,140.03,7.9747637]
[1728531736485,0.12549,140.06,140.04,3.73281639]
[1728531736668,0.12549,140.06,140.03,0.8335637]
[1728531737203,0.12549,140.05,140.03,0.8335637]
[1728531737684,7.26589,140.05,140.03,0.8335637]
[1728531738108,0.12549,140.04,140.03,0.8335637]
[1728531738300,7.39178,140.04,140.03,0.8335637]
[1728531740010,31.168664,140.04,140.03,0.8335637]
[1728531740709,0.25098,140.04,140.03,0.8335637]
[1728531741208,6.2645,140.09,140.03,7.9748637]
[1728531741414,7.1393,140.07,140.03,7.9748637]
[1728531742008,7.1393,140.07,140.03,0.8335637]
[1728531742611,0.25098,140.06,140.03,0.8335637]
[1728531746007,7.39078,140.06,140.03,0.8335637]
[1728531750105,24.027864,140.11,140.03,0.8335637]
[1728531751222,7.1402,140.06,140.03,0.8335637]
[1728531752018,0.12549,140.05,140.03,0.8335637]
[1728531752397,7.26579,140.05,140.03,0.8335637]
[1728531762230,7.39178,140.04,140.03,0.8335637]
[1728531766010,31.168664,140.04,140.03,0.8335637]
[1728531769533,0.25098,140.04,140.03,0.8335637]
[1728531771636,7.1399,140.06,140.03,0.8335637]
[1728531771833,0.25098,140.05,140.03,0.8335637]
[1728531772552,7.1394,140.07,140.03,0.8335637]
[1728531772757,7.1392,140.08,140.03,7.9747637]
[1728531773060,7.1383,140.09,140.05,7.1402]
[1728531773528,7.1378,140.1,140.06,7.1396]
[1728531773729,7.1373,140.11,140.06,7.1396]
[1728531773933,7.1373,140.11,140.06,8.56737933]
[1728531775441,7.1373,140.11,140.06,21.44245879]
[1728531776565,0.12549,140.1,140.06,21.44245879]
[1728531776866,0.25098,140.1,140.07,7.1391]
[1728531778362,15.22245154,140.12,140.08,7.1386]
[1728531778533,15.22245154,140.12,140.08,8.56628729]
[1728531778734,15.22245154,140.12,140.08,7.1386]
[1728531780460,15.22245154,140.12,140.08,8.56613255]
[1728531782246,15.22245154,140.12,140.08,14.30261201]
[1728531782548,15.22245154,140.12,140.11,7.1372]
[1728531783637,15.22245154,140.12,140.1,24.982]
[1728531785745,15.22245154,140.12,140.1,39.28440525]
[1728531785963,15.22245154,140.12,140.11,7.1372]
[1728531786356,15.22245154,140.12,140.1,30.71937946]
[1728531786663,15.22245154,140.12,140.1,37.85697946]
[1728531786849,15.22245154,140.12,140.1,39.28425858]
[1728531787051,15.22245154,140.12,140.1,37.85697946]
[1728531788054,15.22245154,140.12,140.11,8.56448726]
[1728531789649,15.22245154,140.12,140.11,7.1372]
[1728531790465,15.22245154,140.12,140.1,24.9819]
[1728531793570,0.12549,140.16,140.11,8.56439366]
[1728531794150,0.12549,140.16,140.11,7.1371]
[1728531794347,0.12549,140.16,140.11,8.56433919]
[1728531794669,0.12549,140.16,140.11,7.1371]
[1728531795476,7.1353,140.15,140.11,7.1371]
[1728531796555,7.1353,140.15,140.11,8.56429615]
[1728531797160,0.12549,140.16,140.11,8.56429615]
[1728531797357,7.26029,140.16,140.11,8.56429615]
[1728531797554,7.26029,140.16,140.11,1.42719615]
[1728531797752,7.1342,140.17,140.12,7.1366]
[1728531797976,7.1342,140.17,140.13,7.1361]
[1728531798276,14.1695,140.2,140.15,7.1351]
[1728531798496,47.0478093,140.24,140.14,17.8388]
[1728531798497,20.7608,140.24,140.14,17.8388]
[1728531798800,20.7608,140.24,140.14,24.9743]
[1728531798801,7.1332,140.19,140.14,24.9743]
[1728531799765,0.25098,140.18,140.14,24.9743]
[1728531804863,7.38468,140.18,140.14,24.9743]
[1728531811897,7.38468,140.18,140.14,24.9743]
[1728531812093,7.38468,140.18,140.12,6.0171]
[1728531812094,0.25098,140.18,140.12,6.0171]
[1728531812394,0.12549,140.16,140.11,17.8426]
[1728531812597,0.12549,140.17,140.11,24.9796]
[1728531812797,7.1353,140.15,140.11,24.9796]
[1728531814376,0.12549,140.17,140.11,17.8426]
[1728531814589,0.12549,140.16,140.12,7.1367]
[1728531814782,7.26019,140.16,140.12,7.1367]
[1728531815879,0.12549,140.15,140.11,24.9797]
[1728531816177,7.1358,140.14,140.1,7.1376]
[1728531825497,0.12549,140.15,140.1,7.1376]
[1728531825498,0.12549,140.15,140.11,8.56406448]
[1728531826378,7.26019,140.16,140.11,7.1368]
[1728531831918,7.26019,140.16,140.12,7.1367]
[1728531832218,7.26029,140.16,140.12,7.1367]
[1728531835823,7.26029,140.16,140.1,17.8436]
[1728531836117,7.26029,140.16,140.11,7.1371]
[1728531848829,7.1348,140.16,140.11,7.1371]
[1728531849037,7.1335,140.19,140.14,20.01027946]
[1728531849240,7.1335,140.19,140.15,1.4267965]
[1728531849535,7.1335,140.19,140.14,20.01027946]
[1728531849717,7.1335,140.19,140.14,7.1352]
[1728531850210,7.1328,140.2,140.15,7.1347]
[1728531850408,0.25098,140.19,140.15,7.1347]
[1728531851030,0.25098,140.19,140.16,1.42678049]
[1728531851222,0.25098,140.19,140.15,7.1347]
[1728531854930,0.25098,140.19,140.16,1.42674605]
[1728531855138,0.25098,140.19,140.15,7.1347]
[1728531864935,7.1339,140.18,140.14,17.8381]
[1728531866146,7.1339,140.18,140.14,24.9737]
[1728531866441,0.25098,140.19,140.12,15.9891]
[1728531866738,7.1357,140.14,140.11,17.8424]
[1728531867741,7.1353,140.15,140.11,17.8424]
[1728531868543,7.1353,140.15,140.12,1.42720478]
[1728531868948,7.1353,140.15,140.11,17.8424]
[1728531873653,7.1353,140.15,140.11,19.26959848]
[1728531874338,7.1353,140.15,140.11,17.8424]
[1728531880647,7.1353,140.15,140.12,1.42719464]
[1728531886356,0.12549,140.17,140.12,1.42719464]
[1728531886556,7.38518,140.17,140.13,7.1359]
[1728531886761,7.38518,140.17,140.14,1.42698289]
[1728531887051,7.38518,140.17,140.13,7.1359]
[1728531893662,7.38518,140.17,140.12,7.1366]
[1728531893961,7.1348,140.16,140.12,7.1366]
[1728531897446,7.1348,140.16,140.13,1.42700554]
[1728531898456,7.25969,140.17,140.13,1.42700554]
[1728531898663,7.1342,140.17,140.13,8.56300554]
[1728531899265,7.1342,140.17,140.13,7.136]
[1728531900349,7.1342,140.17,140.14,1.42689934]
[1728531900845,24.027864,140.21,140.14,1.42689934]
[1728531901046,7.1336,140.19,140.15,1.42684662]
[1728531901266,7.1336,140.19,140.14,7.1357]
[1728531908965,7.1336,140.19,140.15,1.42677185]
[1728531909168,7.1336,140.19,140.15,8.56187185]
[1728531909664,7.1322,140.21,140.16,7.1343]
[1728531909867,7.1322,140.21,140.17,7.1341]
[1728531910166,7.1327,140.2,140.16,7.1345]
[1728531911059,17.826,140.25,140.16,7.1345]
[1728531911255,7.1323,140.21,140.16,7.1345]
[1728531914078,7.1323,140.21,140.15,17.8374]
[1728531914262,7.1323,140.21,140.17,7.1341]
[1728531914582,7.1323,140.21,140.18,1.42653427]
[1728531915474,0.12549,140.22,140.18,1.42653427]
[1728531915672,7.1312,140.23,140.19,7.133]
[1728531915902,17.8221,140.28,140.19,1.42636318]
[1728531916186,7.1305,140.25,140.21,17.8294]
[1728531916482,7.1307,140.24,140.21,17.8294]
[1728531916675,7.1307,140.24,140.2,7.1326]
[1728531924687,7.1307,140.24,140.21,1.42620677]
[1728531925574,7.25569,140.25,140.21,1.42620677]
[1728531925901,7.25569,140.25,140.21,7.1321]
[1728531926405,7.25569,140.25,140.22,1.42620194]
[1728531926895,7.1295,140.27,140.21,16.5828]
[1728531927098,7.1295,140.27,140.22,17.8286]
[1728531927284,7.1295,140.27,140.22,24.9601]
[1728531927487,7.1297,140.26,140.22,24.9601]
[1728531927684,7.1297,140.26,140.22,17.8286]
[1728531928497,0.12549,140.25,140.22,17.8286]
[1728531928802,7.1309,140.24,140.19,24.9649]
[1728531932003,7.1309,140.24,140.2,8.5586991]
[1728531933802,7.38118,140.25,140.2,8.5586991]
[1728531935705,7.38118,140.25,140.2,1.4261991]
[1728531935909,7.38118,140.25,140.21,7.132]
[1728531943402,7.1307,140.24,140.19,17.8321]
[1728531944437,0.25098,140.25,140.2,7.1326]
[1728531944619,7.38118,140.25,140.2,7.1326]
[1728531945796,0.25098,140.25,140.19,17.8321]
[1728531946101,7.1317,140.22,140.18,23.6438]
[1728531946305,7.1317,140.22,140.18,16.5102]
[1728531947297,7.1317,140.22,140.19,1.42641158]
[1728531951694,7.1317,140.22,140.18,23.6438]
[1728531953307,7.1317,140.22,140.19,1.42641272]
[1728531955024,7.1317,140.22,140.18,23.6438]
[1728531955427,7.1317,140.22,140.19,1.42640874]
[1728531957128,7.1317,140.22,140.18,23.6438]
[1728531957430,7.1317,140.22,140.19,1.42640787]
[1728531957731,7.1317,140.22,140.18,23.6438]
[1728531957921,7.1311,140.23,140.19,8.55950849]
[1728531960816,7.1311,140.23,140.19,7.1331]
[1728531961538,7.1311,140.23,140.2,1.42631734]
[1728531963333,7.1311,140.23,140.19,7.1331]
[1728531964138,7.1311,140.23,140.2,1.42631909]
[1728531965134,7.1311,140.23,140.19,7.1331]
[1728531967341,7.38268,140.22,140.18,41.4775]
[1728531967528,7.1317,140.22,140.18,34.3439]
[1728531967915,0.25098,140.24,140.18,16.5102]
[1728531968136,0.25098,140.24,140.15,37.40463123]
[1728531968341,0.25098,140.24,140.15,33.6876]
[1728531968841,7.1328,140.2,140.16,7.1343]
[1728531969031,0.25098,140.24,140.16,7.1343]
[1728531969214,7.1321,140.21,140.16,7.1343]
[1728531970042,7.1321,140.21,140.17,1.42655115]
[1728531970211,7.1321,140.21,140.17,8.56065115]
[1728531971235,7.1321,140.21,140.18,1.4265508]
[1728531972741,7.1321,140.21,140.16,7.1346]
[1728531973244,7.1321,140.21,140.17,1.42654986]
[1728531973546,7.25719,140.22,140.17,1.42654986]
[1728531973726,7.25719,140.22,140.18,7.1335]
[1728531976244,7.25659,140.23,140.17,24.4975]
[1728531976555,7.25659,140.23,140.19,7.1331]
[1728531978619,0.12549,140.23,140.2,7.1324]
[1728531979036,0.12549,140.23,140.19,24.9652]
[1728531979941,7.25669,140.23,140.19,24.9652]
[1728531980846,7.25669,140.23,140.2,1.42631204]
[1728531982747,7.25669,140.23,140.19,24.9652]
[1728531984827,7.25669,140.23,140.2,1.42630958]
[1728531985744,7.25669,140.23,140.19,24.9652]
[1728531986835,7.1312,140.23,140.19,24.9652]
[1728531987025,7.25619,140.24,140.19,24.9652]
[1728531990952,7.25619,140.24,140.2,7.1326]
[1728531991358,0.12549,140.24,140.21,1.42617423]
[1728531992131,30.906984,140.25,140.21,1.42617423]
[1728531992336,7.1296,140.26,140.22,8.55765404]
[1728531992743,7.1296,140.26,140.22,7.1316]
[1728531992944,14.1695,140.3,140.19,29.23947946]
[1728531993130,14.1695,140.3,140.24,7.1301]
[1728531993432,24.2565,140.32,140.25,1.42585471]
[1728531993640,7.1284,140.29,140.25,8.55585471]
[1728531994440,14.1695,140.34,140.25,8.55585471]
[1728531994645,7.1276,140.3,140.25,8.55585471]
[1728531996933,0.12549,140.31,140.25,8.55585471]
[1728531997165,7.1281,140.29,140.25,7.13]
[1728531998251,0.12549,140.31,140.23,33.4964]
[1728531998446,0.12549,140.3,140.23,33.4964]
[1728531999361,7.1292,140.27,140.23,33.4964]
[1728532000459,7.1296,140.26,140.23,15.6691]
[1728532002460,7.1292,140.27,140.23,15.6691]
[1728532003564,7.1292,140.27,140.23,17.09501361]
[1728532003750,7.25419,140.28,140.23,17.09501361]
[1728532004062,7.25419,140.28,140.23,15.6691]
[1728532005139,7.25419,140.28,140.24,1.42582021]
[1728532005352,7.25419,140.28,140.24,7.1305]
[1728532006346,7.25419,140.28,140.25,1.42582064]
[1728532006561,7.25419,140.28,140.24,7.1305]
[1728532009654,7.25419,140.28,140.25,1.42582204]
[1728532010049,7.25369,140.29,140.23,15.6691]
[1728532010236,7.25369,140.29,140.25,7.13]
[1728532010440,7.25369,140.29,140.26,1.42569278]
[1728532011459,7.1282,140.29,140.25,7.13]
[1728532011672,7.1274,140.31,140.26,8.55507693]
[1728532012061,7.1267,140.32,140.27,31.46534847]
[1728532012441,7.1267,140.32,140.27,30.0398]
[1728532012675,7.1271,140.31,140.27,30.0398]
[1728532013742,7.1271,140.31,140.27,22.9108]
[1728532014051,7.1281,140.29,140.24,23.5437]
[1728532015476,7.1281,140.29,140.25,1.42569054]
[1728532015975,7.1281,140.29,140.25,7.1301]
[1728532017165,0.12549,140.3,140.24,23.5437]
[1728532017369,7.1286,140.28,140.24,23.5437]
[1728532022771,7.1286,140.28,140.25,1.42577346]
[1728532023679,7.1282,140.29,140.25,1.42577346]
[1728532024181,0.12549,140.28,140.25,1.42577346]
[1728532025869,7.1282,140.29,140.24,23.5437]
[1728532026483,7.1287,140.28,140.24,16.4132]
[1728532026854,7.1292,140.27,140.24,16.4132]
[1728532029658,7.1292,140.27,140.25,1.42582232]
[1728532030059,7.1287,140.28,140.25,1.42582232]
[1728532031864,7.1287,140.28,140.25,1.4258217]
[1728532035893,7.1287,140.28,140.24,16.4132]
[1728532036487,7.1287,140.28,140.25,1.42582316]
[1728532037367,7.1287,140.28,140.24,16.4132]
[1728532038596,7.1287,140.28,140.25,1.42582212]
[1728532039876,7.1287,140.28,140.24,16.4132]
[1728532040666,7.1287,140.28,140.25,1.42582171]
[1728532042794,7.1287,140.28,140.24,16.4132]
[1728532043483,7.1287,140.28,140.25,1.42582158]
[1728532044093,7.25369,140.29,140.25,1.42582158]
[1728532044387,7.25369,140.29,140.25,8.55582158]
[1728532045091,7.1276,140.3,140.26,7.1294]
[1728532045289,14.1695,140.33,140.27,1.42558012]
[1728532045691,7.127,140.31,140.27,8.55458012]
[1728532046298,7.127,140.31,140.28,1.42553199]
[1728532047999,7.127,140.31,140.27,1.42553639]
[1728532048295,7.1276,140.3,140.26,7.1295]
[1728532048971,7.1276,140.3,140.25,24.9547]
[1728532050275,0.12549,140.32,140.25,24.9547]
[1728532050474,7.1286,140.28,140.24,23.5436]
[1728532054689,7.1286,140.28,140.25,1.42570603]
[1728532060209,7.1286,140.28,140.24,23.5436]
[1728532061500,0.12549,140.29,140.24,16.4132]
[1728532061693,7.1294,140.27,140.23,7.131]
[1728532064318,7.1294,140.27,140.22,24.9599]
[1728532080801,7.1294,140.27,140.23,7.1309]
[1728532081000,0.12549,140.3,140.23,7.1309]
[1728532081208,7.1282,140.29,140.25,7.13]
[1728532081396,0.25098,140.3,140.26,8.55520754]
[1728532081397,0.12549,140.3,140.26,8.55520754]
[1728532081719,7.25319,140.3,140.26,8.55520754]
[1728532082398,7.25319,140.3,140.26,1.42570754]
[1728532083022,7.25319,140.3,140.25,7.13]
[1728532083023,7.25369,140.29,140.25,7.13]
[1728532083700,7.25369,140.29,140.24,24.9565]
[1728532084119,7.1282,140.29,140.24,17.826]
[1728532084325,7.1282,140.29,140.25,7.1298]
[1728532085525,0.12549,140.3,140.24,24.9565]
[1728532085726,7.1287,140.28,140.24,17.826]
[1728532094321,7.1287,140.28,140.25,1.42574216]
[1728532096918,7.1287,140.28,140.24,24.9564]
[1728532111221,7.1291,140.27,140.23,7.131]
[1728532112126,7.1286,140.28,140.23,7.131]
[1728532113865,7.1292,140.27,140.23,7.131]
[1728532114020,7.1302,140.25,140.21,32.8892]
[1728532114352,17.94519,140.3,140.2,6.3239]
[1728532114353,7.1311,140.23,140.2,6.3239]
[1728532114522,7.1308,140.24,140.2,6.3239]
[1728532114938,7.1308,140.24,140.19,7.1327]
[1728532116145,7.1311,140.23,140.18,41.77477336]
[1728532116320,17.94749,140.28,140.18,41.77477336]
[1728532116527,7.1312,140.23,140.18,41.77477336]
[1728532117068,0.12549,140.22,140.18,41.77477336]
[1728532117241,0.12549,140.22,140.19,1.42640742]
[1728532117947,0.12549,140.22,140.18,41.77477336]
[1728532118244,0.12549,140.22,140.19,1.42640737]
[1728532120339,7.1312,140.23,140.2,1.42640839]
[1728532120647,7.1312,140.23,140.19,7.1331]
[1728532122357,7.1312,140.23,140.2,1.42630773]
[1728532122655,7.1312,140.23,140.19,7.1331]
[1728532122830,0.12549,140.24,140.19,7.1331]
[1728532123157,0.12549,140.24,140.18,33.571]
[1728532123447,20.384,140.29,140.18,33.571]
[1728532123448,7.1317,140.22,140.18,33.571]
[1728532123651,7.1317,140.22,140.19,1.42641156]
[1728532128670,7.1312,140.23,140.19,7.1331]
[1728532131243,7.1312,140.23,140.2,1.42629454]
[1728532132038,7.25619,140.24,140.2,8.55879454]
[1728532132242,38.2047,140.29,140.2,32.131874]
[1728532132455,7.1287,140.28,140.23,7.1307]
[1728532132767,7.1287,140.28,140.23,8.55669234]
[1728532132957,7.1291,140.27,140.23,8.55669234]
[1728532133451,7.1286,140.28,140.23,8.55669234]
[1728532133659,7.1281,140.29,140.24,8.55613991]
[1728532133954,7.1281,140.29,140.23,12.87507946]
[1728532135458,7.1281,140.29,140.25,7.1301]
[1728532135963,7.1281,140.29,140.26,1.42567479]
[1728532136571,7.1281,140.29,140.25,7.1301]
[1728532140465,0.12549,140.3,140.22,46.05887946]
[1728532140669,7.1286,140.28,140.22,33.1838]
[1728532140874,7.13,140.26,140.22,33.1838]
[1728532141067,7.1302,140.25,140.22,15.3553]
[1728532143470,7.1307,140.24,140.21,6.4405]
[1728532143676,7.1315,140.23,140.19,33.6096]
[1728532144280,7.1315,140.23,140.19,40.7425]
[1728532144677,7.1306,140.24,140.19,33.6096]
[1728532144857,7.1306,140.24,140.2,7.1326]
[1728532147284,7.1304,140.25,140.21,1.42616838]
[1728532147581,7.1304,140.25,140.21,8.55826838]
[1728532150888,7.1304,140.25,140.2,7.1324]
[1728532151981,0.25098,140.27,140.19,40.7427]
[1728532152176,7.1316,140.22,140.19,15.7773]
[1728532152995,7.1312,140.23,140.19,15.7773]
[1728532153400,7.1312,140.23,140.19,22.9102]
[1728532153778,7.1312,140.23,140.2,1.42626072]
[1728532153978,24.027864,140.27,140.2,1.42626072]
[1728532154191,7.1307,140.24,140.2,1.42626072]
[1728532155402,7.25569,140.25,140.2,8.55876072]
[1728532155612,7.25569,140.25,140.21,7.132]
[1728532155788,7.1302,140.25,140.22,1.42610885]
[1728532155978,20.7059,140.29,140.22,1.42610885]
[1728532156178,7.1297,140.26,140.22,8.55770885]
[1728532157291,7.1297,140.26,140.22,7.1316]
[1728532157810,7.1281,140.29,140.24,7.1302]
[1728532158102,7.1286,140.28,140.24,7.1302]
[1728532159311,7.1286,140.28,140.25,1.42572565]
[1728532159483,7.1286,140.28,140.24,7.1302]
[1728532160386,35.6301,140.34,140.24,8.19988452]
[1728532160592,7.1282,140.29,140.25,15.1546]
[1728532167132,0.12549,140.3,140.25,15.1546]
[1728532167346,7.129,140.28,140.23,7.131]
[1728532168219,7.1291,140.27,140.23,7.131]
[1728532171144,24.027864,140.28,140.24,7.1302]
[1728532171523,31.156564,140.28,140.24,7.1302]
[1728532172235,31.156564,140.28,140.25,1.42582749]
[1728532173320,7.1276,140.3,140.26,7.1295]
[1728532173514,38.1453,140.35,140.27,1.42557841]
[1728532174043,38.1453,140.35,140.25,12.87507946]
[1728532174239,7.1267,140.32,140.27,7.1289]
[1728532174544,7.1267,140.32,140.28,1.4254038]
[1728532175236,7.1267,140.32,140.27,7.1289]
[1728532177664,7.1267,140.32,140.28,8.55380058]
[1728532180665,7.1267,140.32,140.28,7.1284]
[1728532180956,7.1277,140.3,140.27,22.1454]
[1728532181140,0.12549,140.31,140.24,21.4873]
[1728532181349,7.1282,140.29,140.24,28.6175]
[1728532183257,7.1282,140.29,140.25,7.1299]
[1728532183458,7.1279,140.3,140.25,7.1299]
[1728532184140,7.1279,140.3,140.24,18.6172]
[1728532185351,7.1279,140.3,140.25,7.1297]
[1728532186451,7.1279,140.3,140.26,1.42560102]
[1728532186653,7.1279,140.3,140.25,7.1297]
[1728532186951,7.1279,140.3,140.26,1.42559625]
[1728532187167,7.1279,140.3,140.25,7.1297]
[1728532188742,7.1282,140.29,140.25,7.1297]
[1728532190250,0.12549,140.31,140.24,18.6172]
[1728532190447,7.1289,140.28,140.24,15.1502]
[1728532190647,17.94379,140.31,140.21,17.41908149]
[1728532190847,7.1297,140.26,140.21,24.55108149]
[1728532191053,7.1297,140.26,140.22,7.1315]
[1728532191868,7.1297,140.26,140.21,24.55108149]
[1728532192673,7.1297,140.26,140.21,17.41908149]
[1728532192973,7.1297,140.26,140.22,7.1315]
[1728532193162,7.1292,140.27,140.22,7.1315]
[1728532193480,0.12549,140.28,140.23,1.42591453]
[1728532193648,7.25409,140.28,140.23,8.55661453]
[1728532196259,7.1286,140.28,140.24,7.1305]
[1728532196551,0.25098,140.31,140.25,17.825]
[1728532196764,7.1285,140.29,140.25,17.825]
[1728532197551,0.25098,140.31,140.25,17.825]
[1728532197753,7.1286,140.28,140.25,17.825]
[1728532198669,7.1286,140.28,140.24,7.1301]
[1728532199850,7.1286,140.28,140.23,7.131]
[1728532200566,7.1293,140.27,140.22,17.8284]
[1728532200767,0.12549,140.29,140.22,17.8284]
[1728532200956,7.1299,140.26,140.22,17.8284]
[1728532202076,7.1299,140.26,140.23,1.42600344]
[1728532202775,7.1306,140.24,140.23,1.42600344]
[1728532202951,0.12549,140.25,140.17,22.75974603]
[1728532203160,7.132,140.22,140.17,26.46803239]
[1728532203481,7.132,140.22,140.17,22.75974603]
[1728532203675,7.132,140.22,140.18,1.42638909]
[1728532205146,0.12549,140.25,140.17,15.3384]
[1728532205345,23.902374,140.24,140.17,15.3384]
[1728532205552,7.1331,140.19,140.17,15.3384]
[1728532205756,7.1331,140.19,140.15,20.0]
[1728532206353,7.1336,140.18,140.14,23.88126348]
[1728532207972,30.244174,140.24,140.14,1.07046348]
[1728532207973,0.12549,140.19,140.14,1.07046348]
[1728532208165,0.12549,140.19,140.1,32.927]
[1728532209379,0.12549,140.19,140.11,12.87507946]
[1728532209552,7.1347,140.16,140.11,21.43885781]
[1728532210058,7.1342,140.17,140.12,7.1366]
[1728532210269,7.1342,140.17,140.13,1.42688912]
[1728532210469,7.1358,140.14,140.1,32.927]
[1728532213466,0.12549,140.18,140.1,15.0831]
[1728532213664,7.1362,140.13,140.1,15.0831]
[1728532214473,7.1362,140.13,140.11,1.42728236]
[1728532219075,0.12549,140.15,140.11,1.42728236]
[1728532219271,7.26109,140.15,140.11,1.42728236]
[1728532219467,7.26109,140.15,140.11,8.56448236]
[1728532219881,7.1356,140.15,140.11,8.56448236]
[1728532220069,33.24065484,140.22,140.12,12.87507946]
[1728532220273,7.1341,140.18,140.14,7.1357]
[1728532220475,7.1341,140.18,140.15,1.42671597]
[1728532220683,31.999,140.22,140.15,1.42671597]
[1728532220868,7.1332,140.19,140.14,7.1357]
[1728532222899,7.1332,140.19,140.15,1.426713]
[1728532225207,7.1332,140.19,140.15,8.561813]